{"text_format":"1","workbook":"xlsx","n_sheets":10,"sheets":["À LIRE EN PREMIER","Inputs","Résultats","Impact","Données de couverture","Country Data","Données sur le taux de perte","Coûts programmatiques","Données sur le produit","Co-financement Gavi"],"not_rendered":{"charts":5,"images":2,"macros":1,"external_links":0,"defined_names":2,"comments":0,"pivot_tables":0},"unopened":[],"bounds":{"document_bytes":16777216,"sheet_cells":100000,"rows_first":2000,"rows_last":500,"rows_between":2000,"halvings":0,"cell_chars":16384,"cell_head_chars":4096},"cells_cut":0,"cells_raw":0,"read":"whole","date_system":"1900"}

{"sheet":"À LIRE EN PREMIER","index":0,"n_rows":65,"n_cols":6,"rows_kept":65,"cut":false,"hidden":false,"merged":[[12,1,12,6],[4,1,4,6],[38,1,38,6],[17,1,18,1],[17,2,18,4],[18,5,18,6],[19,2,19,4],[28,2,28,6],[29,2,29,6],[30,2,30,6],[17,5,17,6],[19,5,19,6],[20,5,20,6],[27,2,27,6],[33,1,33,6],[20,1,21,1],[1,1,1,6],[2,1,2,6],[10,1,10,6],[6,1,6,6],[8,1,8,6],[21,5,21,6],[20,2,21,4],[23,1,23,6],[25,1,25,6],[52,2,52,4],[41,5,41,6],[35,1,35,6],[40,5,40,6],[41,1,42,1],[41,2,42,4],[40,2,40,4],[42,5,42,6],[14,2,14,4],[14,5,14,6],[15,2,15,4],[16,2,16,4],[15,5,15,6],[16,5,16,6],[64,2,64,6],[60,2,60,6],[57,1,57,6],[54,2,54,4],[47,5,47,6],[48,5,48,6],[53,5,53,6],[54,5,54,6],[49,5,49,6],[48,2,48,4],[53,2,53,4],[61,2,61,6],[62,2,62,6],[50,5,50,6],[55,2,55,4],[55,5,55,6],[63,2,63,6],[43,2,43,4],[43,5,43,6],[51,2,51,4],[51,5,51,6],[49,2,49,4],[46,5,46,6],[44,2,44,4],[45,2,45,4],[46,2,46,4],[47,2,47,4],[45,5,45,6],[59,2,59,6],[50,2,50,4],[52,5,52,6],[44,5,44,6]]}
[null,"Outil d'aide à l'évaluation pour le passage au flacon de 5 doses de VAR"]
[null,"Veuillez adresser vos questions ou demandes d'assistance par courrier électronique à l'équipe responsable de l'évaluation du flacon de 5 doses de VAR de Linksbridge aux adresses suivantes : lena.stashko@linksbridge.com ; sheldon.halsted@linksbridge.com ; et/ou maggie.archbold@linksbridge.com"]
[null,"Présentation générale"]
[]
[null,"L'outil d'aide à l'évaluation pour le passage au flacon de 5 doses de VAR est un modèle simple permettant d'évaluer et de comparer les compromis programmatiques, financiers et logistiques entre les flacons de 5 doses et les flacons de 10 doses de VAR. Il vise à aider les décideurs au niveau national à comparer les produits et à estimer leur impact sur la couverture, le coût total des systèmes et les exigences en matière de chaîne du froid. L'outil peut être utilisé par tout pays désireux de comparer les flacons de VAR de 5 doses et ceux contenant 10 doses."]
[]
[null,"Avertissement : L'outil d'aide à l'évaluation du flacon de 5 doses a pour but d'éclairer la sélection des produits vaccinaux. Veuillez noter que les données disponibles sur l'impact des flacons de 5 doses de VAR sur les taux de perte vaccinale, la couverture et les coûts sont limitées ; veuillez ajuster les entrées, si nécessaire, de manière à tenir compte de cette incertitude. Ce modèle est destiné à donner un aperçu de l'impact potentiel de l'adoption des flacons de 5 doses et ne doit pas remplacer les prévisions détaillées ou la planification opérationnelle et budgétaire. "]
[]
[null,"Guide de l'utilisateur"]
[]
[null,"Inputs"]
[]
[null,"Dans la feuille de calcul Inputs, vous pouvez sélectionner le pays pour lequel vous souhaitez établir un modèle et les vaccins à comparer. Vous pouvez, en outre, ajuster les hypothèses concernant la couverture, la perte vaccinale et les coûts."]
[]
[null,"Catégorie","Description",null,null,"Sources"]
[null,"Pays","• Permet de sélectionner le pays analysé et de déterminer automatiquement la taille de la population cible\n",null,null,"PNUD, révision 2022, taille de la cohorte de naissance en 2022, renseignée automatiquement pour le pays listé comme référence"]
[null,"Couverture","• La couverture est renseignée automatiquement sur la base des estimations de couverture WUENIC du VAR1 et du VAR2 en 2021\n• Nous avons modélisé l'effet de l'intervention pour différents taux de couverture de base du VAR1 et du VAR2\n• Nous avons appliqué l'effet de l'intervention (+4,9 % pour le VAR1, +3,5 % pour le VAR2) à la couverture de base jusqu'à 82,1 % pour le VAR1 et 43,0 % pour le VAR2\n• Au-delà de la couverture de base tirée de l'étude sur la Zambie, nous avons supposé des rendements décroissants, excluant finalement l'effet de l'intervention une fois que la couverture de base atteint 95 %\n• À mesure que la couverture de base du VAR/VARR augmente, l'impact de l'adoption des flacons de 5 doses sur la couverture diminue",null,null,"Données WUENIC 2022, couverture en 2021 renseignée automatiquement pour le pays listé comme référence"]
[null,"Perte","• Étant donné l'incertitude de l'impact des flacons de 5 doses sur la perte vaccinale et les différents facteurs qui influencent ce dernier, cette analyse vous permet de choisir vos hypothèses sur la perte vaccinale à partir de deux sources différentes :\n1) Fiche de présentation des flacons de cinq doses du vaccin contre la rougeole et la rougeole-rubéole (RR) de l'OMS/UNICEF 2021\n2) Les résultats de l'étude sur la Zambie (Krudwig et al., 2020)",null,null,"Données sur la perte vaccinale - OMS/UNICEF"]
[null,null,null,null,null,"Étude sur la couverture et la perte vaccinale en Zambie"]
[null,"Coûts programmatiques","• Les coûts financiers et économiques annuels supplémentaires par dose administrée associés au passage des flacons de 10 doses à ceux de 5 doses\n• Les coûts supplémentaires comprennent les coûts de la chaîne du froid, du transport, de la sensibilisation, des ressources humaines et de l'élimination des déchets\n• Les données proviennent de l'étude sur la Zambie",null,null,"Étude sur la couverture des flacons de 5 doses et la perte vaccinale en Zambie"]
[null,"Coût des vaccins et chaîne du froid","• Permet de comparer le produit actuel conditionné en flacons de 10 doses, ainsi que la première et la deuxième option pour l'adoption des flacons de 5 doses\n• Les différentes options ont des conséquences différentes sur les prix et en ce qui concerne la chaîne du froid",null,null,"Prix : Prix des vaccins R/RR de l'UNICEF"]
[null,null,null,null,null,"Chaîne du froid : Profils de produits détaillés de Gavi"]
[]
[null,"Résultats"]
[]
[null,"La feuille de calcul Résultats présente une comparaison des flacons de 5 et 10 doses en termes d'administration du vaccin, de coût total des systèmes, d'exigences en matière de chaîne du froid et de considérations supplémentaires."]
[]
[null,"Catégorie","Description"]
[null,"Livraison des vaccins","Montre l'impact de l'adoption des flacons de 5 doses sur l'approvisionnement total nécessaire, les doses administrées et les doses gaspillées."]
[null,"Coût total des systèmes","Montre l'impact de l'adoption des flacons de 5 doses sur le coût de l'approvisionnement en vaccins et le coût total par enfant vacciné – et aussi pour l'ensemble du pays, Gavi et le total."]
[null,"Cold Chain Requirements","Indique le volume de la chaîne du froid ajusté en fonction de la perte vaccinale par dose administrée et pour l'ensemble du pays."]
[]
[]
[null,"Impact"]
[]
[null,"La feuille de calcul Impact présente un résumé de haut niveau comparant l'impact des flacons de 5 doses sur le programme de vaccination, les coûts et la chaîne du froid des pays, ainsi que des considérations supplémentaires."]
[]
[]
[null,"Glossaire et calculs"]
[]
[null,"Catégorie","Description",null,null,"Calcul"]
[null,"Nombre de doses administrées","Le nombre de doses de vaccin R/RR administrées aux enfants, y compris le VAR1 et le VAR2.",null,null,"Flacon de 10 doses : (population cible * couverture du VAR1) + (population cible * couverture du VAR2)"]
[null,null,null,null,null,"Flacon de 5 doses : (population cible * (couverture du VAR1 + augmentation de la couverture du VAR1) + (population cible * (couverture du VAR2 + augmentation de la couverture du VAR2))"]
[null,"Approvisionnement total nécessaire","La demande en vaccins R/RR, compte tenu de la population cible, du nombre de doses, de la couverture et du taux de perte vaccinale",null,null,"Nombre de doses administrées * taux de perte vaccinale \\[1 / (1 - taux de perte vaccinale pour la taille du flacon)]"]
[null,"Nombre de doses gaspillées","Le nombre de doses perdues par rapport à l'approvisionnement total nécessaire, sur la base des taux de perte vaccinale",null,null,"Approvisionnement total nécessaire – nombre de doses administrées"]
[null,"Prix du vaccin","Le prix du vaccin par dose, tel que rapporté par l'UNICEF",null,null,"Aucun calcul (entrée)"]
[null,"Coût de l’approvisionnement en vaccins par enfant vacciné","Le coût du vaccin par dose administrée, ajusté en fonction de la perte vaccinale",null,null,"Prix du vaccin * (approvisionnement total nécessaire / nombre de doses administrées)"]
[null,"Coûts marginaux non liés aux vaccins par enfant vacciné","Les coûts annuels supplémentaires par dose administrée associés au passage des flacons de 10 doses à ceux de 5 doses. Les coûts supplémentaires comprennent les coûts de la chaîne du froid, du transport, de la sensibilisation, des ressources humaines et de l'élimination des déchets.",null,null,"Aucun calcul (entrée)"]
[null,"Coût total par enfant vacciné","Le coût de l’approvisionnement en vaccins par enfant vacciné, ajusté en fonction de la perte vaccinale. En ce qui concerne les flacons de 5 doses, il inclut également les coûts marginaux non liés aux vaccins par enfant vacciné.",null,null,"Flacon à 5 doses : Coût de l’approvisionnement en vaccins par enfant vacciné + coûts marginaux non liés aux vaccins par enfant vacciné"]
[null,"Coût total de l’approvisionnement en vaccins pour le pays","Le coût total de l’approvisionnement en vaccins pour le pays",null,null,"Prix du vaccin * approvisionnement total nécessaire * part de cofinancement du pays"]
[null,"Coût total de l'approvisionnement en vaccins pour Gavi","Le coût total de l'approvisionnement en vaccins pour Gavi, en cas de cofinancement avec Gavi",null,null,"Prix du vaccin * approvisionnement total nécessaire * part de cofinancement de Gavi"]
[null,"Coût total du programme de vaccination du pays","Le coût total de l’approvisionnement en vaccins pour le pays. En ce qui concerne les flacons de 5 doses, il inclut également les coûts marginaux non liés aux vaccins associés au passage des flacons de 10 doses à ceux de 5 doses",null,null,"Flacon à 5 doses : (Prix du vaccin * approvisionnement total nécessaire * part de cofinancement du pays) + (nombre de doses administrées * coûts marginaux non liés aux vaccins par enfant vacciné)"]
[null,"Coût total du programme de vaccination (y compris le coût de l'approvisionnement par Gavi)","Le coût total de l'approvisionnement en vaccins pour le pays et Gavi et les coûts marginaux programmatiques en ce qui concerne les flacons de 5 doses.",null,null,"Flacon à 5 doses : (Prix du vaccin * approvisionnement total nécessaire) + (nombre de doses administrées * coûts marginaux non liés aux vaccins par enfant vacciné)"]
[null,"Volume de chaîne du froid par dose","Volume de chaîne du froid nécessaire par dose (en cm3) d'après les profils produits détaillés de Gavi",null,null,"Aucun calcul (entrée)"]
[null,"Volume total de la chaîne du froid des vaccins dans le pays","Volume de chaîne du froid par dose administrée, ajusté en fonction de la perte vaccinale",null,null,"Volume total nécessaire de la chaîne du froid des vaccins dans le pays (volume de chaîne du froid par dose * approvisionnement total nécessaire)"]
[null,"Stockage net par dose","Volume de chaîne du froid par dose administrée, ajusté en fonction de la perte vaccinale",null,null,"L'étude sur la Zambie s'est penchée sur le stockage net nécessaire par enfant entièrement vacciné, en tenant compte des glacières, des porte-vaccins et des réfrigérateurs"]
[]
[null,"Limites"]
[]
[null,"Limite","Description"]
[null,"Perte","• Il existe peu de données sur l'impact des flacons de 5 doses de VAR/VARR sur les taux de perte vaccinale\n• De nombreux facteurs peuvent influencer la perte vaccinale, et le contexte de chaque pays doit être pris en considération"]
[null,"Couverture","• Les données disponibles sont limitées pour une compréhension appropriée de l'impact des flacons de 5 doses sur la couverture dans différents contextes, notamment les établissements de santé dont la taille de la population desservie varie"]
[null,"Coûts totaux","• Il existe une incertitude quant aux coûts programmatiques supplémentaires liés à l'adoption des flacons de 5 doses, et les coûts varieront en fonction des contextes"]
[null,"Chaîne du froid","• L'impact de l'adoption des flacons de 5 doses sur la chaîne du froid est incertain et variera selon les établissements de santé"]
[null,"Étude sur la Zambie","• L'étude sur la Zambie a servi à formuler des hypothèses sur la perte vaccinale, la couverture, les coûts marginaux et la chaîne du froid\n• Veuillez vous référer à l'étude sur la Zambie (voir section Inputs ci-dessus) pour une description complète des limites de l'étude"]

{"sheet":"Inputs","index":1,"n_rows":40,"n_cols":9,"rows_kept":40,"cut":false,"hidden":false,"merged":[[6,8,6,9],[7,8,7,9],[5,8,5,9],[8,8,8,9],[9,8,9,9],[26,4,26,6],[11,1,11,6],[1,1,1,6],[24,1,24,6],[20,4,20,6],[21,4,21,6],[22,4,22,6],[2,1,2,6],[6,4,6,6],[7,4,7,6],[4,1,4,6],[16,4,16,6],[9,4,9,6],[8,4,8,6],[2,8,2,9],[39,1,39,9],[39,11,39,20],[36,8,36,9],[29,11,29,20],[31,11,31,20],[33,8,34,9],[35,8,35,9],[33,11,33,12],[29,1,29,9],[31,1,31,9],[27,4,27,6],[13,4,13,6],[14,4,14,6],[15,4,15,6],[18,1,18,6]]}
[null,"Outil d'aide à l'évaluation du passage au flacon de 5 doses de VAR - Inputs"]
[null,"Veuillez adresser vos questions ou demandes d'assistance par courrier électronique à l'équipe responsable de l'évaluation du flacon de 5 doses de VAR/VARR de Linksbridge aux adresses suivantes : lena.stashko@linksbridge.com ; sheldon.halsted@linksbridge.com ; et/ou maggie.archbold@linksbridge.com"]
[null,"ÉTAPE 1 : PROGRAMME DE VACCINATION"]
[]
[null,"Pays"]
[null,null,null,null,null,null,null,null,"Légende :"]
[null,"Sélectionnez le pays >>>","Afghanistan",null,"Pays analysé",null,null,null,"REQUIS : Sélectionnez l'entrée dans le menu déroulant."]
[null,"Taille de la population cible",{"$f":"VLOOKUP($C$7,'Country Data'!$B$3:$E$196,4,FALSE)","v":1368682},null,"PNUD, révision 2022, taille de la cohorte de naissance en 2022, renseignée automatiquement pour le pays listé comme référence",null,null,null,"Données renseignées automatiquement en fonction des entrées sélectionnées ou des données pré-renseignées. Vous pouvez écraser le contenu de ces cellules si vous souhaitez saisir vos propres données."]
[null,"Statut du cofinancement avec Gavi","Initial self-financing",null,"Statut de cofinancement avec Gavi du pays pour l'année de référence",null,null,null,"Les entrées qui ont été saisies manuellement sont surlignées en jaune."]
[null,"Part de cofinancement du pays",1,null,"Le pourcentage du prix du vaccin par dose ou « fraction de prix » dont le pays est responsable. Les pays ne bénéficiant pas du soutien de Gavi doivent entrer 100 % pour toutes les années.",null,null,null,"AVERTISSEMENT : Si vous avez ajusté manuellement une cellule d'entrée, vous pouvez cliquer sur le bouton RESET pour restaurer les données renseignées automatiquement."]
[]
[null,"Couverture"]
[]
[null,"Couverture du VAR1",{"$f":"VLOOKUP($C$7,'Country Data'!$B$3:$D$196,2,FALSE)","v":0.63},null,"Données WUENIC 2022, couverture du VAR1 en 2021, renseignée automatiquement pour le pays listé comme référence"]
[null,"Couverture du VAR2",{"$f":"VLOOKUP($C$7,'Country Data'!$B$3:$D$196,3,FALSE)","v":0.44},null,"Données WUENIC 2022, couverture du VAR2 en 2021, renseignée automatiquement pour le pays listé comme référence"]
[null,"Amélioration de la couverture du VAR1",{"$f":"_xlfn.IFNA(VLOOKUP($C$14,Table14[],2,FALSE),0)","v":4.9000000000000002E-2},null,"Amélioration attendue de la couverture du VAR1 suite à l'adoption des flacons de 5 doses"]
[null,"Amélioration de la couverture du VAR2",{"$f":"_xlfn.IFNA(VLOOKUP(C$15,Table14[],3,FALSE),0)","v":3.4283600000000025E-2},null,"Amélioration attendue de la couverture du VAR2 suite à l'adoption des flacons de 5 doses"]
[]
[null,"Perte"]
[]
[null,"Sélectionnez la source des hypothèses sur la perte vaccinale >>>","Étude sur la Zambie",null,"Étant donné l'incertitude de l'impact des flacons de 5 doses sur la perte vaccinale et les différents facteurs qui influencent ce dernier, vous pouvez sélectionner des hypothèses sur la perte vaccinale ou des résultats de l'étude sur la Zambie à partir de la fiche d'information de l'OMS/UNICEF, ou entrer vos propres hypothèses sur la perte vaccinale."]
[null,"Perte de flacons de 10 doses",{"$f":"VLOOKUP(C$21,Table5[],2,FALSE)","v":0.30530000000000002},null,{"$f":"VLOOKUP(C$21,'Données sur le taux de perte'!$A$3:$D$5,4,FALSE)","v":"Résultats de l'étude sur la perte vaccinale en Zambie"}]
[null,"Perte de flacons de 5 doses",{"$f":"VLOOKUP(C$21,Table5[],3,FALSE)","v":0.1618},null,{"$f":"VLOOKUP(C$21,'Données sur le taux de perte'!$A$3:$D$5,4,FALSE)","v":"Résultats de l'étude sur la perte vaccinale en Zambie"}]
[]
[null,"Coûts du programme"]
[]
[null,"Sélectionnez la source des coûts du programme >>>","Étude sur la Zambie",null,"Les coûts annuels supplémentaires par dose administrée, non liés aux vaccins et associés au passage des flacons de 10 doses à ceux de 5 doses. Étant donné l'incertitude de l'impact des flacons de 5 doses sur les coûts programmatiques, vous pouvez sélectionner des hypothèses de coûts à partir des résultats de l'étude sur la Zambie ou saisir vos propres hypothèses."]
[null,"Coûts marginaux non liés aux vaccins par flacon de 5 doses administré",{"$f":"VLOOKUP(C27,Table55[],2,FALSE)","v":0.11},null,{"$f":"VLOOKUP(C27,'Coûts programmatiques'!A3:C4,3,FALSE)","v":"L'étude sur la Zambie a révélé que le coût marginal économique et financier par flacon de 5 doses administré était de 0,11 $ (hors coût du vaccin). Les coûts supplémentaires comprennent les coûts de la chaîne du froid, du transport, de la sensibilisation, des ressources humaines et de l'élimination des déchets. Les données proviennent du rapport du DPCP sur la Zambie."}]
[]
[null,"ÉTAPE 2 : OPTIONS DE VACCINS CONTRE LA ROUGEOLE"]
[]
[null,"Coût des vaccins et chaîne du froid"]
[]
[null,null,"PRODUIT ACTUEL EN FLACON DE 10 DOSES",null,"OPTION 1\n(FLACON À 5 DOSES )",null,"OPTION 2\n(FLACON À 5 DOSES )",null,"COMMENTAIRES ET SOURCES"]
[null,"Sélectionnez le vaccin et la présentation >>>","RR, Bio E\nFlacon de 10 doses",null,"RR, SII\n Flacon à 5 doses",null,"RR, BioE\nFlacon à 5 doses"]
[null,"Prix par dose",{"$f":"VLOOKUP(C$35,Table2[],2,FALSE)","v":0.79200000000000004},null,{"$f":"VLOOKUP(E$35,Table2[],2,FALSE)","v":1.0900000000000001},null,{"$f":"VLOOKUP(G$35,Table2[],2,FALSE)","v":0.91800000000000004},null,"À partir des données de l'UNICEF sur les prix des vaccins, ou saisie manuelle"]
[null,"Volume de chaîne du froid par dose (cm3)",{"$f":"VLOOKUP(C$35,Table2[],3,FALSE)","v":3.9000000000000004},null,{"$f":"VLOOKUP(E$35,Table2[],3,FALSE)","v":8.65},null,{"$f":"VLOOKUP(G$35,Table2[],3,FALSE)","v":5.92},null,"Volume de chaîne du froid nécessaire par dose (en cm3) d'après les profils produits détaillés de Gavi (y compris les flacons et les ampoules)"]
[]
[]
[null,"<<< ALLER AUX RÉSULTATS >>>"]

{"sheet":"Résultats","index":2,"n_rows":48,"n_cols":15,"rows_kept":48,"cut":false,"hidden":false,"merged":[[44,1,44,2],[39,1,39,2],[40,1,40,2],[41,1,41,2],[42,1,42,2],[43,1,43,2],[21,1,21,2],[28,1,30,1],[33,11,33,12],[33,14,33,15],[32,1,33,1],[29,11,29,12],[29,14,29,15],[30,11,30,12],[30,14,30,15],[7,1,7,2],[8,1,8,2],[9,1,9,2],[10,1,10,2],[11,1,11,2],[38,14,40,15],[39,8,39,9],[39,5,39,6],[38,8,38,9],[23,1,23,15],[38,5,38,6],[38,11,40,12],[25,5,25,6],[25,8,25,9],[25,11,27,12],[25,14,27,15],[26,1,26,2],[26,5,26,6],[26,8,26,9],[27,1,27,2],[47,1,47,15],[16,5,16,6],[6,8,6,9],[7,8,7,9],[16,8,16,9],[17,5,17,6],[17,8,17,9],[43,11,43,12],[43,14,43,15],[44,11,44,12],[44,14,44,15],[28,11,28,12],[28,14,28,15],[41,11,41,12],[41,14,41,15],[42,11,42,12],[42,14,42,15],[31,11,31,12],[31,14,31,15],[1,1,1,8],[10,11,10,12],[11,11,11,12],[9,14,9,15],[10,14,10,15],[11,14,11,15],[9,11,9,12],[2,1,2,15],[4,1,4,15],[6,5,6,6],[7,5,7,6],[6,11,8,12],[6,14,8,15],[14,1,14,15],[32,11,32,12],[32,14,32,15],[36,1,36,15],[21,11,21,12],[21,14,21,15],[19,11,19,12],[19,14,19,15],[20,11,20,12],[20,14,20,15],[16,11,18,12],[16,14,18,15],[17,1,17,2],[18,1,18,2],[19,1,19,2],[20,1,20,2]]}
[null,"Outil d'aide à la décision pour le passage au flacon de 5 dose de VAR - Résultats (annuels)"]
[null,"Veuillez adresser vos questions ou demandes d'assistance par courrier électronique à l'équipe responsable de l'évaluation du flacon de 5 doses de VAR/VARR de Linksbridge aux adresses suivantes : lena.stashko@linksbridge.com ; sheldon.halsted@linksbridge.com ; et/ou maggie.archbold@linksbridge.com"]
[null,{"$f":"_xlfn.CONCAT(\"RÉSULTATS: \",UPPER(Inputs!C7))","v":"RÉSULTATS: AFGHANISTAN"}]
[]
[null,"LIVRAISON DES VACCINS"]
[]
[null,null,null,"PRODUIT ACTUEL EN FLACON DE 10 DOSES",null,"OPTION 1\n(FLACON À 5 DOSES)",null,null,"OPTION 2\n(FLACON À 5 DOSES)",null,null,"Description",null,null,"Interprétation"]
[null,{"$f":"VLOOKUP($C$7,'Country Data'!$B$3:$E$196,4,FALSE)","v":{"$error":"#N/A"}},null,{"$f":"Inputs!$C$35","v":"RR, Bio E\nFlacon de 10 doses"},null,{"$f":"Inputs!$E$35","v":"RR, SII\n Flacon à 5 doses"},null,null,{"$f":"Inputs!$G$35","v":"RR, BioE\nFlacon à 5 doses"}]
[null,"Résultats et différence",null,"Résultats",null,"Résultats","Différence (5 doses - 10 doses)",null,"Résultats","Différence (5 doses - 10 doses)"]
[null,"Approvisionnement total nécessaire",null,{"$f":"(Inputs!$C$8*Inputs!$C$14*(1/(1-Inputs!$C$22)))+(Inputs!$C$8*Inputs!$C$15*(1/(1-Inputs!$C$22)))","v":2108089.4486828847},null,{"$f":"(Inputs!$C$8*(Inputs!$C$14+Inputs!$C$16)*(1/(1-Inputs!$C$23)))+(Inputs!$C$8*(Inputs!$C$15+Inputs!$C$17)*(1/(1-Inputs!$C$23)))","v":1883176.4545635884},{"$f":"F10-D10","v":-224912.99411929632},null,{"$f":"(Inputs!$C$8*(Inputs!$C$14+Inputs!$C$16)*(1/(1-Inputs!$C$23)))+(Inputs!$C$8*(Inputs!$C$15+Inputs!$C$17)*(1/(1-Inputs!$C$23)))","v":1883176.4545635884},{"$f":"I10-D10","v":-224912.99411929632},null,"La demande en vaccins VAR, compte tenu de la population cible, du nombre de doses, de la couverture et des taux de perte vaccinale",null,null,{"$f":"(_xlfn.CONCAT(\"L'approvisionnement total nécessaire diminuera de \",TEXT(ABS(D10-F10),\"###,###,###\"),\" doses par an, ou de \",TEXT(ABS(((D10-F10)/D10)),\"0 %\")))","v":"L'approvisionnement total nécessaire diminuera de 224,913 doses par an, ou de 11 %"}]
[null,"Nombre de doses administrées",null,{"$f":"(Inputs!$C$8*Inputs!$C$14)+(Inputs!$C$8*Inputs!$C$15)","v":1464489.74},null,{"$f":"(Inputs!$C$8*(Inputs!$C$14+Inputs!$C$16))+(Inputs!$C$8*(Inputs!$C$15+Inputs!$C$17))","v":1578478.5042152},{"$f":"F11-D11","v":113988.76421519998},null,{"$f":"(Inputs!$C$8*(Inputs!$C$14+Inputs!$C$16))+(Inputs!$C$8*(Inputs!$C$15+Inputs!$C$17))","v":1578478.5042152},{"$f":"I11-D11","v":113988.76421519998},null,"Le nombre de doses administrées aux enfants, y compris le VAR1 et le VAR2.",null,null,{"$f":"IF(F11-D11=0,\"La couverture de base du VAR1 et du VAR2 étant supérieure à 95 %, cette analyse suppose qu'il n'y a pas d'augmentation de la couverture ou du nombre d'enfants vaccinés suite à l'adoption des flacons de 5 doses\",(_xlfn.CONCAT(\"Les \",TEXT(ABS(F11-D11),\"###,###,###\"),\" doses supplémentaires seront administrées chaque année (y compris le VAR1 et le VAR2), ce qui représente une augmentation de \",TEXT(ABS(((D11-F11)/D11)),\"0 %\"))))","v":"Les 113,989 doses supplémentaires seront administrées chaque année (y compris le VAR1 et le VAR2), ce qui représente une augmentation de 8 %"}]
[null,"Nombre de doses gaspillées",null,{"$f":"D10-D11","v":643599.7086828847},null,{"$f":"F10-F11","v":304697.9503483884},{"$f":"F12-D12","v":-338901.75833449629},null,{"$f":"I10-I11","v":304697.9503483884},{"$f":"I12-D12","v":-338901.75833449629},null,"Le nombre de doses perdues par rapport à l'approvisionnement total nécessaire, sur la base des taux de perte vaccinale",null,null,{"$f":"(_xlfn.CONCAT(\"Le nombre de doses perdues \",IF(F12<D12,\"diminuera \",\"augmentera \"),\"de \",TEXT(ABS(F12-D12),\"###,###,###\"),\" doses environ, ou de \",TEXT(ABS(((D12-F12)/D12)),\"0 %\")))","v":"Le nombre de doses perdues diminuera de 338,902 doses environ, ou de 53 %"}]
[]
[]
[null,"COÛT TOTAL DES SYSTÈMES (PAR ENFANT VACCINÉ)"]
[]
[null,null,null,"PRODUIT ACTUEL EN FLACON DE 10 DOSES",null,"OPTION 1\n(FLACON À 5 DOSES)",null,null,"OPTION 2\n(FLACON À 5 DOSES)",null,null,"Description",null,null,"Interprétation\n(Toutes les valeurs comparent l'option 1 au produit en flacon de 10 doses)"]
[null,"Vaccin et présentation",null,{"$f":"Inputs!$C$35","v":"RR, Bio E\nFlacon de 10 doses"},null,{"$f":"Inputs!$E$35","v":"RR, SII\n Flacon à 5 doses"},null,null,{"$f":"Inputs!$G$35","v":"RR, BioE\nFlacon à 5 doses"}]
[null,"Produit et différence",null,"Résultats",null,"Résultats","Différence (5 doses - 10 doses)",null,"Résultats","Différence (5 doses - 10 doses)"]
[null,"Prix d'achat du vaccin",null,{"$f":"Inputs!C36","v":0.79200000000000004},null,{"$f":"Inputs!E36","v":1.0900000000000001},{"$f":"F20-D20","v":0.29800000000000004},null,{"$f":"Inputs!G36","v":0.91800000000000004},{"$f":"I20-D20","v":0.126},null,"Le prix du vaccin par dose",null,null,{"$f":"_xlfn.CONCAT(\"Sans tenir compte des pertes, les flacons de 5 doses sont \",TEXT(ABS(F20-D20),\"$0.00\"),\" plus coûteux que ceux de 10 doses\")","v":"Sans tenir compte des pertes, les flacons de 5 doses sont $0.30 plus coûteux que ceux de 10 doses"}]
[null,"Coût de l’approvisionnement en vaccins par enfant vacciné",null,{"$f":"Inputs!C$36*Résultats!D$10/D$11","v":1.1400604577515474},null,{"$f":"Inputs!E$36*Résultats!F$10/F$11","v":1.3004056311142924},{"$f":"F21-D21","v":0.16034517336274501},null,{"$f":"Inputs!G$36*Résultats!I$10/I$11","v":1.0952040085898351},{"$f":"I21-D21","v":-4.4856449161712275E-2},null,"Le coût du vaccin par dose administrée, ajusté en fonction de la perte vaccinale et de la couverture",null,null,{"$f":"_xlfn.CONCAT(\"Compte tenu de la perte vaccinale et de la couverture, le coût de l'approvisionnement en vaccins par enfant vacciné est de \",IF(F21>D21,_xlfn.CONCAT(TEXT(ABS(F21-D21),\"$0.00\"),\" plus élevé que celui des flacons de 10 doses\"),IF(F21<D21,_xlfn.CONCAT(TEXT(ABS(F21-D21),\"$0.00\"),\" moins élevé que celui des flacons de 10 doses\"),\" identique à celui des flacons de 10 doses\")))","v":"Compte tenu de la perte vaccinale et de la couverture, le coût de l'approvisionnement en vaccins par enfant vacciné est de $0.16 plus élevé que celui des flacons de 10 doses"}]
[null,"Coût total par enfant vacciné",null,{"$f":"Inputs!C$36*Résultats!D$10/D$11","v":1.1400604577515474},null,{"$f":"(Inputs!E$36*Résultats!F$10/F$11)+Inputs!$C$28","v":1.4104056311142925},{"$f":"F22-D22","v":0.27034517336274511},null,{"$f":"(Inputs!G$36*Résultats!I$10/I$11)+Inputs!$C$28","v":1.2052040085898352},6.5143550838287823E-2,null,"Le coût de l’approvisionnement en vaccins par enfant vacciné, ajusté en fonction de la perte vaccinale. En ce qui concerne les flacons de 5 doses, il inclut également les coûts marginaux par enfant vacciné, non liés aux vaccins et associés au passage des flacons de 10 doses à ceux de 5 doses.",null,null,{"$f":"_xlfn.CONCAT(IF($F$22>$D$22, \"Les flacons de 5 doses ont des coûts totaux par enfant vacciné plus élevés que ceux des flacons de 10 doses, ce qui est principalement attribuable aux coûts marginaux non liés aux vaccins\", \"Les flacons de 5 doses ont des coûts totaux par enfant vacciné plus faibles que ceux des flacons de 10 doses, même en tenant compte des coûts marginaux non liés aux vaccins et associés à l'adoption des flacons de 5 doses\"))","v":"Les flacons de 5 doses ont des coûts totaux par enfant vacciné plus élevés que ceux des flacons de 10 doses, ce qui est principalement attribuable aux coûts marginaux non liés aux vaccins"}]
[]
[null,"COÛT TOTAL DES SYSTÈMES (POUR LE PAYS ET POUR GAVI)"]
[]
[null,null,null,"PRODUIT ACTUEL EN FLACON DE 10 DOSES",null,"OPTION 1\n(FLACON À 5 DOSES )",null,null,"OPTION 2\n(FLACON À 5 DOSES )",null,null,"Description",null,null,"Interprétation\n(Toutes les valeurs comparent l'option 1 au produit en flacon de 10 doses)"]
[null,"Vaccin et présentation",null,{"$f":"Inputs!$C$35","v":"RR, Bio E\nFlacon de 10 doses"},null,{"$f":"Inputs!$E$35","v":"RR, SII\n Flacon à 5 doses"},null,null,{"$f":"Inputs!$G$35","v":"RR, BioE\nFlacon à 5 doses"}]
[null,"Résultats et différence",null,"Résultats",null,"Résultats","Différence (5 doses - 10 doses)",null,"Résultats","Différence (5 doses - 10 doses)"]
[null,"Coût total de l'approvisionnement en vaccins","Pour le pays",{"$f":"Inputs!C$36*Résultats!D$10*Inputs!$C$10","v":1669606.8433568447},null,{"$f":"Inputs!E$36*Résultats!F$10*Inputs!$C$10","v":2052662.3354743114},{"$f":"F29-D29","v":383055.49211746664},null,{"$f":"Inputs!G$36*Résultats!I$10*Inputs!$C$10","v":1728755.9852893741},59149.141932529397,null,"Le coût total de l'approvisionnement en vaccins pour le pays (prix du vaccin * approvisionnement total nécessaire * part de cofinancement du pays)",null,null,{"$f":"(_xlfn.CONCAT(\"Le coût total de l'approvisionnement en vaccins pour \",Inputs!C7,\" sera environ de \",IF(Résultats!F29> Résultats!D29,_xlfn.CONCAT(TEXT(ABS(Résultats!F29-Résultats!D29),\"$###,###,###\"),\" plus\"),_xlfn.CONCAT(TEXT(ABS(Résultats!F29-Résultats!D29),\"$###,###,###\"),\" moins\")),\" cher pour les flacons de 5 doses que pour ceux de 10 doses\"))","v":"Le coût total de l'approvisionnement en vaccins pour Afghanistan sera environ de $383,055 plus cher pour les flacons de 5 doses que pour ceux de 10 doses"}]
[null,null,"Pour Gavi",{"$f":"Inputs!C$36*Résultats!D$10*(1-Inputs!$C$10)","v":0},null,{"$f":"Inputs!E$36*Résultats!F$10*(1-Inputs!$C$10)","v":0},{"$f":"F30-D30","v":0},null,{"$f":"Inputs!G$36*Résultats!I$10*(1-Inputs!$C$10)","v":0},0,null,"Le coût total de l'approvisionnement en vaccins pour Gavi (prix du vaccin * approvisionnement total nécessaire * (1 - part de cofinancement du pays))",null,null,{"$f":"IF(F30=0,\"Ce vaccin n'est pas cofinancé par Gavi\",_xlfn.CONCAT(\"Le coût total de l'approvisionnement en vaccins pour Gavi sera d'environ\",IF(Résultats!F30>Résultats!D30,_xlfn.CONCAT(TEXT(ABS(Résultats!F30-Résultats!D30),\"$###,###,###\"),\" plus\"),_xlfn.CONCAT(TEXT(ABS(Résultats!F30-Résultats!D30),\"$###,###,###\"),\" moins\")),\" cher pour les flacons de 5 doses que pour ceux de 10 doses\"))","v":"Ce vaccin n'est pas cofinancé par Gavi"}]
[null,null,"Total",{"$f":"SUM(D29:D30)","v":1669606.8433568447},null,{"$f":"SUM(F29:F30)","v":2052662.3354743114},{"$f":"SUM(G29:G30)","v":383055.49211746664},null,{"$f":"SUM(I29:I30)","v":1728755.9852893741},{"$f":"SUM(J29:J30)","v":59149.141932529397},null,"La somme du coût de l'approvisionnement en vaccins pour le pays et pour Gavi",null,null,{"$f":"_xlfn.CONCAT(\"Le coût total de l'approvisionnement en vaccins pour \",Inputs!C7,\" et pour Gavi sera environ de \",IF(Résultats!F31>Résultats!D31,_xlfn.CONCAT(TEXT(ABS(Résultats!F31-Résultats!D31),\"$###,###,###\"),\" plus\"),_xlfn.CONCAT(TEXT(ABS(Résultats!F31-Résultats!D31),\"$###,###,###\"),\" moins\")),\" cher pour les flacons de 5 doses que pour ceux de 10 doses\")","v":"Le coût total de l'approvisionnement en vaccins pour Afghanistan et pour Gavi sera environ de $383,055 plus cher pour les flacons de 5 doses que pour ceux de 10 doses"}]
[null,"Coûts marginaux totaux non liés aux vaccins","Pour le pays",{"$f":"D11*0","v":0},null,{"$f":"(Inputs!$C$28*Résultats!F11)","v":173632.63546367199},{"$f":"F32-D32","v":173632.63546367199},null,{"$f":"(Inputs!$C$28*Résultats!I11)","v":173632.63546367199},{"$f":"I32-D32","v":173632.63546367199},null,"Coûts marginaux non liés aux vaccins par flacon de 5 doses administré * nombre de doses administrées",null,null,{"$f":"_xlfn.CONCAT(\"Un supplément de \",(TEXT(ABS(G32),\"$###,###,###\")),\" est prévu pour les coûts non liés aux vaccins associés à l'adoption des flacons de 5 doses. Il couvre des éléments tels que la chaîne du froid, le transport, la sensibilisation, les ressources humaines et les coûts d'élimination des déchets\")","v":"Un supplément de $173,633 est prévu pour les coûts non liés aux vaccins associés à l'adoption des flacons de 5 doses. Il couvre des éléments tels que la chaîne du froid, le transport, la sensibilisation, les ressources humaines et les coûts d'élimination des déchets"}]
[null,"Coûts totaux du programme de vaccination","Pour le pays",{"$f":"SUM(D29,D32)","v":1669606.8433568447},null,{"$f":"SUM(F29,F32)","v":2226294.9709379831},{"$f":"F33-D33","v":556688.1275811384},null,{"$f":"SUM(I29,I32)","v":1902388.6207530461},{"$f":"I33-D33","v":232781.77739620139},null,"Le coût total de l'approvisionnement en vaccins pour le pays. En ce qui concerne les flacons de 5 doses, il inclut également les coûts marginaux non liés aux vaccins associés au passage des flacons de 10 doses à ceux de 5 doses.",null,null,{"$f":"_xlfn.CONCAT(\"Le coût total pour \",Inputs!C7,\", compte tenu des coûts marginaux non liés aux vaccins pour les flacons de 5 doses sera environ de \",IF(Résultats!F33>Résultats!D33,_xlfn.CONCAT(TEXT(ABS(Résultats!F33-Résultats!D33),\"$###,###,###\"),\" plus\"),_xlfn.CONCAT(TEXT(ABS(Résultats!F33-Résultats!D33),\"$###,###,###\"),\" moins\")),\" cher pour les flacons de 5 doses que pour ceux de 10 doses\")","v":"Le coût total pour Afghanistan, compte tenu des coûts marginaux non liés aux vaccins pour les flacons de 5 doses sera environ de $556,688 plus cher pour les flacons de 5 doses que pour ceux de 10 doses"}]
[null,null,"Total (y compris le coût d'approvisionnement pour Gavi)",{"$f":"SUM(D29,D30,D32)","v":1669606.8433568447},null,{"$f":"SUM(F29,F30,F32)","v":2226294.9709379831},{"$f":"F34-D34","v":556688.1275811384},null,{"$f":"SUM(I29,I30,I32)","v":1902388.6207530461},{"$f":"I34-D34","v":232781.77739620139},null,"Le coût total de l'approvisionnement en vaccins pour le pays et Gavi et les coûts marginaux programmatiques en ce qui concerne les flacons de 5 doses.",null,null,{"$f":"_xlfn.CONCAT(\"Le coût total pour \",Inputs!C7,\" et Gavi, compte tenu également des coûts marginaux non liés aux vaccins pour les flacons de 5 doses, sera environ de \",TEXT(F34,\"$###,###,###\"),\", ce qui est \",IF(Résultats!F34> Résultats!D34,_xlfn.CONCAT(TEXT(ABS(Résultats!F34- Résultats!D34),\"$###,###,###\"),\" plus\"),_xlfn.CONCAT(TEXT(ABS(Résultats!F34- Résultats!D34),\"$###,###,###\"),\" moins\")),\" cher que celui des flacons de 10 doses\")","v":"Le coût total pour Afghanistan et Gavi, compte tenu également des coûts marginaux non liés aux vaccins pour les flacons de 5 doses, sera environ de $2,226,295, ce qui est $556,688 plus cher que celui des flacons de 10 doses"}]
[]
[]
[null,"EXIGENCES RELATIVES À LA CHAÎNE DU FROID"]
[]
[null,null,null,"PRODUIT ACTUEL EN FLACON DE 10 DOSES",null,"OPTION 1\n(FLACON À 5 DOSES)",null,null,"OPTION 2\n(FLACON À 5 DOSES)",null,null,"Description",null,null,"Interprétation\n(Toutes les valeurs comparent l'option 1 au produit en flacon de 10 doses)"]
[null,"Vaccin et présentation",null,{"$f":"Inputs!$C$35","v":"RR, Bio E\nFlacon de 10 doses"},null,{"$f":"Inputs!$E$35","v":"RR, SII\n Flacon à 5 doses"},null,null,{"$f":"Inputs!$G$35","v":"RR, BioE\nFlacon à 5 doses"}]
[null,"Produit et différence",null,"Résultats",null,"Résultats","Différence (5 doses - 10 doses)",null,"Résultats","Différence (5 doses - 10 doses)"]
[null,"Volume de chaîne du froid par dose (cm3)",null,{"$f":"Inputs!C37","v":3.9000000000000004},null,{"$f":"Inputs!E37","v":8.65},{"$f":"F42-D42","v":4.75},null,{"$f":"Inputs!G37","v":5.92},{"$f":"I42-D42","v":2.0199999999999996},null,"Volume de chaîne du froid nécessaire par dose (en cm3) d'après les profils produits détaillés de Gavi (y compris les flacons et les ampoules)",null,null,{"$f":"IF(F42>D42,_xlfn.CONCAT(\"Les flacons de 5 doses occupent \",TEXT(ABS(F42-D42),\"##.##\"),\" cm3 de volume de chaîne du froid par dose de plus que ceux de 10 doses\"),_xlfn.CONCAT(\"Les flacons de 5 doses occupent \",TEXT(ABS(F42-D42),\"##.##\"),\" cm3 de volume de chaîne du froid par dose de moins que ceux de 10 doses\"))","v":"Les flacons de 5 doses occupent 4.75 cm3 de volume de chaîne du froid par dose de plus que ceux de 10 doses"}]
[null,"Volume de chaîne du froid par enfant vacciné (cm3)",null,{"$f":"(D42*D10)/D11","v":5.6139340722614079},null,{"$f":"(F42*F10)/F11","v":10.319732760677642},4.7057986884162339,null,{"$f":"(I42*I10)/I11","v":7.0627535194464315},{"$f":"I43-D43","v":1.4488194471850235},null,"Volume de chaîne du froid par dose administrée, ajusté en fonction de la perte vaccinale",null,null,{"$f":"_xlfn.CONCAT(\"Compte tenu de la perte vaccinale et de la couverture, \",IF(F43>D43,_xlfn.CONCAT(\"les flacons de 5 doses occupent \",TEXT(ABS(F43-D43),\"##.##\"),\" cm3 de volume de chaîne du froid de plus que ceux de 10 doses\"),_xlfn.CONCAT(\"les flacons de 5 doses occupent \",TEXT(ABS(F43-D43),\"##.##\"),\" cm3 de volume de chaîne du froid de moins que ceux de 10 doses\")))","v":"Compte tenu de la perte vaccinale et de la couverture, les flacons de 5 doses occupent 4.71 cm3 de volume de chaîne du froid de plus que ceux de 10 doses"}]
[null,"Volume total de la chaîne du froid des vaccins dans le pays (cm3)",null,{"$f":"D42*D10","v":8221548.8498632507},null,{"$f":"F42*F10","v":16289476.331975041},8067927.4821117902,null,{"$f":"I42*I10","v":11148404.611016443},{"$f":"I44-D44","v":2926855.7611531923},null,"Volume total nécessaire de la chaîne du froid des vaccins dans le pays (volume de chaîne du froid par dose * approvisionnement total nécessaire)",null,null,{"$f":"_xlfn.CONCAT(\"Le volume total de la chaîne du froid de \",Inputs!C7,\" sera environ de \",IF(Résultats!F44>Résultats!D44,_xlfn.CONCAT(TEXT(ABS(Résultats!F44-Résultats!D44),\"###,###,###\"),\" cm3 supérieur\"),_xlfn.CONCAT(TEXT(ABS(Résultats!F44-Résultats!D44),\"###,###,###\"),\" cm3 inférieur\")),\" pour les flacons de 5 doses que pour ceux de 10 doses\")","v":"Le volume total de la chaîne du froid de Afghanistan sera environ de 8,067,927 cm3 supérieur pour les flacons de 5 doses que pour ceux de 10 doses"}]
[null,"Stockage net par dose (cm3)",null,88.5,null,93.7,5.2000000000000028,null,93.7,5.2000000000000028,null,"L'étude sur la Zambie s'est penchée sur le stockage net nécessaire par enfant entièrement vacciné, en tenant compte des glacières, des porte-vaccins et des réfrigérateurs",null,null,"L'étude sur la Zambie a montré que la différence entre les besoins totaux en stockage net par enfant entièrement vacciné, y compris le vaccin, était marginale "]
[]
[]
[null,"<<< ALLER À LA SECTION IMPACT >>>"]

{"sheet":"Impact","index":3,"n_rows":41,"n_cols":4,"rows_kept":41,"cut":false,"hidden":false,"merged":[[39,3,39,14],[40,3,40,14],[31,1,31,14],[33,1,33,14],[34,1,34,14],[36,1,36,14],[37,1,37,14],[38,3,38,14],[30,1,30,14],[22,1,22,14],[24,1,24,14],[25,1,25,14],[27,1,27,14],[28,1,28,14],[17,1,17,14],[18,1,18,14],[19,1,19,14],[11,1,11,14],[12,1,12,14],[13,1,13,14],[14,1,14,14],[7,1,7,14],[8,1,8,14],[1,1,1,7],[2,1,2,14],[4,1,4,14],[5,1,5,14],[6,1,6,14]]}
[null,"Outil d'aide à l'évaluation pour le passage au flacon de 5 doses de VAR - Résultats (annuels)"]
[null,"Veuillez adresser vos questions ou demandes d'assistance par courrier électronique à l'équipe responsable de l'évaluation du flacon de 5 doses de VAR/VARR de Linksbridge aux adresses suivantes : lena.stashko@linksbridge.com ; sheldon.halsted@linksbridge.com ; et/ou maggie.archbold@linksbridge.com"]
[null,{"$f":"_xlfn.CONCAT(\"IMPACT: \",UPPER(Inputs!$C$7))","v":"IMPACT: AFGHANISTAN"}]
[]
[null,"LIVRAISON DES VACCINS"]
[null,{"$f":"_xlfn.CONCAT(\"PRINCIPAUX POINTS À RETENIR DE L'OPTION 1 : L'adoption des flacons de 5 doses entraîne une réduction de l'approvisionnement total nécessaire\",IF(Résultats!F11=Résultats!D11,\"\",\", supplémentaires d'enfants vaccinés,\"),\" et moins de doses perdues qu'avec les flacons de 10 doses\")","v":"PRINCIPAUX POINTS À RETENIR DE L'OPTION 1 : L'adoption des flacons de 5 doses entraîne une réduction de l'approvisionnement total nécessaire, supplémentaires d'enfants vaccinés, et moins de doses perdues qu'avec les flacons de 10 doses"}]
[null,{"$f":"(_xlfn.CONCAT(\"L'approvisionnement total nécessaire diminuera de \",TEXT(ABS(Résultats!D10-Résultats!F10),\"###,###,###\"),\" doses chaque année, ou de \",TEXT(ABS(((Résultats!D10-Résultats!F10)/Résultats!D10)),\"0%\")))","v":"L'approvisionnement total nécessaire diminuera de 224,913 doses chaque année, ou de 11%"}]
[null,{"$f":"IF(Résultats!D11-Résultats!F11=0,\"La couverture de base du VAR1 et du VAR2 étant supérieure à 95 %, cette analyse suppose qu'il n'y a pas d'augmentation de la couverture ou du nombre d'enfants vaccinés suite à l'adoption des flacons de 5 doses\",_xlfn.CONCAT(\"\",TEXT(ABS(Résultats!D11-Résultats!F11),\"###,###,###\"),\" doses supplémentaires seront administrées chaque année (y compris le VAR1 et le VAR2), ce qui représente une augmentation de \",TEXT(ABS(((Résultats!D11-Résultats!F11)/Résultats!D11)),\"0 %\")))","v":"113,989 doses supplémentaires seront administrées chaque année (y compris le VAR1 et le VAR2), ce qui représente une augmentation de 8 %"}]
[null,{"$f":"_xlfn.CONCAT(\"Le nombre de doses perdues \",IF(Résultats!F12<Résultats!D12,\"diminuera \",\"augmentera \"),\"de \",TEXT(ABS(Résultats!F12-Résultats!D12),\"###,###,###\"),\" doses environ, ou de \",TEXT(ABS(((Résultats!D12-Résultats!F12)/Résultats!D12)),\"0 %\"))","v":"Le nombre de doses perdues diminuera de 338,902 doses environ, ou de 53 %"}]
[]
[]
[null,"COÛT TOTAL DES SYSTÈMES"]
[null,{"$f":"_xlfn.CONCAT(\"PRINCIPAUX POINTS À RETENIR DE L'OPTION 1 : \",IF(Résultats!F21> Résultats!D21,\"Compte tenu de la perte vaccinale et de la couverture, le coût de l'approvisionnement en vaccins est marginalement plus élevé pour les flacons de 5 doses\",\"Compte tenu des pertes et de la couverture, le coût de l'approvisionnement en vaccins est moins cher pour les flacons de 5 doses que pour ceux de 10 doses\"),\". Outre le coût de l'approvisionnement en vaccins, \",Inputs!C7,\" doit également tenir compte des coûts marginaux non liés aux vaccins associés à l'adoption des flacons de 5 doses. Les coûts associés au changement peuvent être compensés par une subvention de Gavi pour le changement de produit, en cas d'éligibilité.\")","v":"PRINCIPAUX POINTS À RETENIR DE L'OPTION 1 : Compte tenu de la perte vaccinale et de la couverture, le coût de l'approvisionnement en vaccins est marginalement plus élevé pour les flacons de 5 doses. Outre le coût de l'approvisionnement en vaccins, Afghanistan doit également tenir compte des coûts marginaux non liés aux vaccins associés à l'adoption des flacons de 5 doses. Les coûts associés au changement peuvent être compensés par une subvention de Gavi pour le changement de produit, en cas d'éligibilité."}]
[null,{"$f":"(_xlfn.CONCAT(\"Le coût total de l'approvisionnement en vaccins pour \",Inputs!C7,\" sera environ de  \",TEXT(Résultats!F29,\"$###,###,###\"),\", soit de  \",IF(Résultats!F29>Résultats!D29,_xlfn.CONCAT(TEXT(ABS(Résultats!F29-Résultats!D29),\"$###,###,###\"),\" plus\"),_xlfn.CONCAT(TEXT(ABS(Résultats!F29-Résultats!D29),\"$###,###,###\"),\" moins\")),\" cher pour les flacons de 5 doses que pour ceux de 10 doses, compte tenu d'un potentiel cofinancement\"))","v":"Le coût total de l'approvisionnement en vaccins pour Afghanistan sera environ de  $2,052,662, soit de  $383,055 plus cher pour les flacons de 5 doses que pour ceux de 10 doses, compte tenu d'un potentiel cofinancement"}]
[null,{"$f":"(_xlfn.CONCAT(\"Le coût total pour \",Inputs!C7,\", compte tenu des coûts marginaux non liés aux vaccins pour les flacons de 5 doses sera environ de \",TEXT(Résultats!F33,\"$###,###,###\"),\", soit de \",IF(Résultats!F33>Résultats!D33,_xlfn.CONCAT(TEXT(ABS(Résultats!F33-Résultats!D33),\"$###,###,###\"),\" plus\"),_xlfn.CONCAT(TEXT(ABS(Résultats!F33-Résultats!D33),\"$###,###,###\"),\" moins\")),\" cher pour les flacons de 5 doses que pour ceux de 10 doses\"))","v":"Le coût total pour Afghanistan, compte tenu des coûts marginaux non liés aux vaccins pour les flacons de 5 doses sera environ de $2,226,295, soit de $556,688 plus cher pour les flacons de 5 doses que pour ceux de 10 doses"}]
[]
[]
[null,"EXIGENCES RELATIVES À LA CHAÎNE DU FROID"]
[null,"PRINCIPAUX POINTS À RETENIR DE L'OPTION 1 : Bien que les flacons de 5 doses occupent plus d'espace dans la chaîne du froid par dose, cet aspect est compensé par l'approvisionnement total nécessaire plus faible, et tous les établissements de santé de l'étude sur la Zambie disposaient d'un espace suffisant dans leur chaîne du froid. L'étude sur la Zambie a montré que la différence entre les besoins totaux en stockage net par enfant entièrement vacciné, y compris le vaccin, était marginale."]
[null,{"$f":"(_xlfn.CONCAT(\"Le volume total de la chaîne du froid de \",Inputs!C7,\" sera environ de  \",IF(Résultats!F44>Résultats!D44,_xlfn.CONCAT(TEXT(ABS(Résultats!F44-Résultats!D44),\"###,###,###\"),\" cm3 supérieur\"),_xlfn.CONCAT(TEXT(ABS(Résultats!F44-Résultats!D44),\"###,###,###\"),\" cm3 inférieur\")),\" pour les flacons de 5 doses que pour ceux de 10 doses\"))","v":"Le volume total de la chaîne du froid de Afghanistan sera environ de  8,067,927 cm3 supérieur pour les flacons de 5 doses que pour ceux de 10 doses"}]
[]
[]
[null,"AUTRES POINTS À PRENDRE EN CONSIDÉRATION :"]
[]
[null,"ÉQUITÉ"]
[null,"• L'outil sur le flacon de 5 doses de VAR est une innovation fondée sur la prestation de services qui peut aider à atteindre les enfants non vaccinés ou sous-vaccinés, en particulier dans les zones rurales et éloignées où les sessions ont tendance à être de faible ampleur.\n• Réduire au minimum les opportunités manquées de vaccination permettra de progresser vers la réalisation des objectifs d'équité en matière de vaccination."]
[]
[null,"LE COMPORTEMENT DES TRAVAILLEURS DE LA SANTÉ"]
[null,"• En dépit des politiques sur l’ouverture des flacons qui prônent le principe « un flacon, un enfant », la réticence du personnel de santé à ouvrir les flacons reste un problème pour la vaccination de routine.\n• L’utilisation d’un flacon de 5 doses de VAR atténuera l'hésitation du personnel de santé à ouvrir un flacon par peur des pertes vaccinales et/ou des ruptures de stock.\n• L'utilisation des flacons de 5 doses améliorera la couverture en temps voulu et réduira les occasions manquées de vaccination, tout en réduisant les pertes."]
[]
[null,"SÉCURITÉ"]
[null,"• L'augmentation du nombre de doses par conteneur accroît les risques d'erreur de l'utilisateur, ce qui peut augmenter la probabilité d'injections non stériles et d'injections avec un vaccin périmé. L'outil pour le flacon de 5 doses de VAR peut contribuer à réduire ce risque."]
[]
[null,"MARCHÉ DE LA SANTÉ"]
[null,"• L'outil pour le flacon de 5 doses est une intervention susceptible d'améliorer la couverture vaccinale de routine, ce qui permettrait de réduire la dépendance du pays vis-à-vis des campagnes et de minimiser l'imprévisibilité de la demande d'une année à l'autre."]
[]
[null,"COÛTS PONCTUELS DU CHANGEMENT ET SUBVENTION DE GAVI"]
[null,"• L'adoption des flacons de 5 doses peut entraîner des coûts ponctuels supplémentaires.\n• Les pays membres de Gavi peuvent bénéficier d'une subvention pour le changement de produit vaccinal afin de compenser les coûts associés à l'adoption des flacons de 5 doses."]
[null,"Coûts ponctuels du changement",0,"Le changement de présentation de vaccin pourrait avoir des implications financières supplémentaires la première année. Vous pouvez saisir ici une somme forfaitaire ou un budget facultatif pour la première année de l'adoption des flacons de 5 doses."]
[null,"Subvention de Gavi pour le changement de produit vaccinal",{"$f":"IF(Inputs!$C$8*0.25>30000,Inputs!$C$8*0.25,30000)","v":342170.5},"Les subventions de Gavi pour le changement de produit vaccinal (SG) sont des subventions ponctuelles fournies par Gavi pour compenser une partie des coûts liés à l'adoption d'un nouveau vaccin. Il est estimé à 0,25 $ par enfant de la cohorte de naissance ou à une somme forfaitaire de 30 000 $, le montant le plus élevé étant retenu."]
[null,"Coûts/économies supplémentaires",{"$f":"C40-C39","v":342170.5},"Ces coûts sont calculés selon la formule suivante : subvention de Gavi pour le changement de produit vaccinal moins les coûts ponctuels du changement"]

{"sheet":"Données de couverture","index":4,"n_rows":102,"n_cols":3,"rows_kept":102,"cut":false,"hidden":true,"merged":[]}
["Coverage Data"]
["Couverture de base","Augmentation de la couverture du VAR1","Augmentation de la couverture du VAR2"]
[0.01,4.9000000000000002E-2,3.5000000000000003E-2]
[0.02,4.9000000000000002E-2,3.5000000000000003E-2]
[0.03,4.9000000000000002E-2,3.5000000000000003E-2]
[0.04,4.9000000000000002E-2,3.5000000000000003E-2]
[0.05,4.9000000000000002E-2,3.5000000000000003E-2]
[0.06,4.9000000000000002E-2,3.5000000000000003E-2]
[7.0000000000000007E-2,4.9000000000000002E-2,3.5000000000000003E-2]
[0.08,4.9000000000000002E-2,3.5000000000000003E-2]
[0.09,4.9000000000000002E-2,3.5000000000000003E-2]
[0.1,4.9000000000000002E-2,3.5000000000000003E-2]
[0.11,4.9000000000000002E-2,3.5000000000000003E-2]
[0.12,4.9000000000000002E-2,3.5000000000000003E-2]
[0.13,4.9000000000000002E-2,3.5000000000000003E-2]
[0.14000000000000001,4.9000000000000002E-2,3.5000000000000003E-2]
[0.15,4.9000000000000002E-2,3.5000000000000003E-2]
[0.16,4.9000000000000002E-2,3.5000000000000003E-2]
[0.17,4.9000000000000002E-2,3.5000000000000003E-2]
[0.18,4.9000000000000002E-2,3.5000000000000003E-2]
[0.19,4.9000000000000002E-2,3.5000000000000003E-2]
[0.2,4.9000000000000002E-2,3.5000000000000003E-2]
[0.21,4.9000000000000002E-2,3.5000000000000003E-2]
[0.22,4.9000000000000002E-2,3.5000000000000003E-2]
[0.23,4.9000000000000002E-2,3.5000000000000003E-2]
[0.24,4.9000000000000002E-2,3.5000000000000003E-2]
[0.25,4.9000000000000002E-2,3.5000000000000003E-2]
[0.26,4.9000000000000002E-2,3.5000000000000003E-2]
[0.27,4.9000000000000002E-2,3.5000000000000003E-2]
[0.28000000000000003,4.9000000000000002E-2,3.5000000000000003E-2]
[0.28999999999999998,4.9000000000000002E-2,3.5000000000000003E-2]
[0.3,4.9000000000000002E-2,3.5000000000000003E-2]
[0.31,4.9000000000000002E-2,3.5000000000000003E-2]
[0.32,4.9000000000000002E-2,3.5000000000000003E-2]
[0.33,4.9000000000000002E-2,3.5000000000000003E-2]
[0.34,4.9000000000000002E-2,3.5000000000000003E-2]
[0.35,4.9000000000000002E-2,3.5000000000000003E-2]
[0.36,4.9000000000000002E-2,3.5000000000000003E-2]
[0.37,4.9000000000000002E-2,3.5000000000000003E-2]
[0.38,4.9000000000000002E-2,3.5000000000000003E-2]
[0.39,4.9000000000000002E-2,3.5000000000000003E-2]
[0.4,4.9000000000000002E-2,3.5000000000000003E-2]
[0.41,4.9000000000000002E-2,3.5000000000000003E-2]
[0.42,4.9000000000000002E-2,3.5000000000000003E-2]
[0.43,4.9000000000000002E-2,3.5000000000000003E-2]
[0.44,4.9000000000000002E-2,3.4283600000000025E-2]
[0.45,4.9000000000000002E-2,3.3610500000000043E-2]
[0.46,4.9000000000000002E-2,3.2937400000000006E-2]
[0.47,4.9000000000000002E-2,3.2264300000000024E-2]
[0.48,4.9000000000000002E-2,3.1591200000000041E-2]
[0.49,4.9000000000000002E-2,3.0918099999999948E-2]
[0.5,4.9000000000000002E-2,3.0244999999999966E-2]
[0.51,4.9000000000000002E-2,2.9571899999999984E-2]
[0.52,4.9000000000000002E-2,2.8898800000000002E-2]
[0.53,4.9000000000000002E-2,2.822570000000002E-2]
[0.54,4.9000000000000002E-2,2.7552599999999927E-2]
[0.55000000000000004,4.9000000000000002E-2,2.6879499999999945E-2]
[0.56000000000000005,4.9000000000000002E-2,2.6206399999999963E-2]
[0.56999999999999995,4.9000000000000002E-2,2.5533299999999981E-2]
[0.57999999999999996,4.9000000000000002E-2,2.4860199999999999E-2]
[0.59,4.9000000000000002E-2,2.4187100000000017E-2]
[0.6,4.9000000000000002E-2,2.3513999999999924E-2]
[0.61,4.9000000000000002E-2,2.2840899999999942E-2]
[0.62,4.9000000000000002E-2,2.216779999999996E-2]
[0.63,4.9000000000000002E-2,2.1494699999999978E-2]
[0.64,4.9000000000000002E-2,2.0821599999999996E-2]
[0.65,4.9000000000000002E-2,2.0148500000000014E-2]
[0.66,4.9000000000000002E-2,1.9475399999999921E-2]
[0.67,4.9000000000000002E-2,1.8802299999999939E-2]
[0.68,4.9000000000000002E-2,1.8129199999999956E-2]
[0.69,4.9000000000000002E-2,1.7456099999999974E-2]
[0.7,4.9000000000000002E-2,1.6782999999999992E-2]
[0.71,4.9000000000000002E-2,1.610990000000001E-2]
[0.72,4.9000000000000002E-2,1.5436799999999917E-2]
[0.73,4.9000000000000002E-2,1.4763699999999935E-2]
[0.74,4.9000000000000002E-2,1.4090599999999953E-2]
[0.75,4.9000000000000002E-2,1.3417499999999971E-2]
[0.76,4.9000000000000002E-2,1.2744399999999989E-2]
[0.77,4.9000000000000002E-2,1.2071300000000007E-2]
[0.78,4.9000000000000002E-2,1.1398200000000025E-2]
[0.79,4.9000000000000002E-2,1.0725099999999932E-2]
[0.8,4.9000000000000002E-2,1.005199999999995E-2]
[0.81,4.9000000000000002E-2,9.3788999999999678E-3]
[0.82,4.9000000000000002E-2,8.7057999999999858E-3]
[0.83,4.5599999999999974E-2,8.0327000000000037E-3]
[0.84,4.1799999999999948E-2,7.3596000000000217E-3]
[0.85,3.8000000000000034E-2,6.6864999999999286E-3]
[0.86,3.4200000000000008E-2,6.0133999999999466E-3]
[0.87,3.0399999999999983E-2,5.3402999999999645E-3]
[0.88,2.6599999999999957E-2,4.6671999999999825E-3]
[0.89,2.2799999999999931E-2,3.9941000000000004E-3]
[0.9,1.9000000000000017E-2,3.3210000000000184E-3]
[0.91,1.5199999999999991E-2,2.6478999999999253E-3]
[0.92,1.1399999999999966E-2,1.9747999999999433E-3]
[0.93,7.5999999999999401E-3,1.3016999999999612E-3]
[0.94,3.8000000000000256E-3,6.2859999999997918E-4]
[0.95,0,-4.4500000000002871E-5]
[0.96,0,0]
[0.97,0,0]
[0.98,0,0]
[0.99,0,0]
[1,0,0]

{"sheet":"Country Data","index":5,"n_rows":196,"n_cols":5,"rows_kept":196,"cut":false,"hidden":true,"merged":[]}
["Country Data (coverage & birth cohort size)"]
["Code_ISO","Pays","Couverture du VAR1 (2021)","Couverture du VAR2 (2021)","Cohorte de naissances (2022)"]
["AFG","Afghanistan",0.63,0.44,1368682]
["ZAF","Afrique du Sud",0.87,0.82,1161080]
["ALB","Albanie",0.87,0.92,28218.5]
["DZA","Algérie",0.8,0.77,946304.5]
["DEU","Allemagne",0.97,0.93,764994]
["AND","Andorre",{"$f":"VLOOKUP($C$7,'Country Data'!$B$3:$E$196,4,FALSE)","v":{"$error":"#N/A"}},0.97,335.5]
["ATG","Antigua",0.85,0.76,1123.5]
["SAU","Arabie saoudite",0.98,0.97,637710]
["ARG","Argentina",0.81,0.79,627545]
["AUS","Australie",0.93,0.94,298603]
["AUT","Austriche",0.95,0.88,84112.5]
["BHS","Bahamas",0.82,0.82,4631]
["BHR","Bahreïn",0.99,0.99,17818]
["BGD","Bangladesh",0.97,0.93,2957644]
["BRB","Barbade",0.77,0.7,3018]
["BEL","Belgique",0.96,0.85,116052]
["BLZ","Belize",0.79,0.77,7064.5]
["BEN","Bénin",0.68,0,451776]
["BLR","Biélorussie",0.98,0.98,88439]
["BIH","Bosnie",0.68,0.76,28459]
["BWA","Botswana",0.97,0.7,59558.5]
["BRA","Brésil",0.73,0.46,2743222.5]
["BRN","Brunei",0.99,0.99,6148.5]
["BGR","Bulgarie",0.89,0.86,58299]
["BFA","Burkina Faso",0.88,0.71,749609.5]
["BDI","Burundi",0.9,0.85,422264.5]
["KHM","Cambodge",0.84,0.71,316916]
["CMR","Cameroun",0.62,0.35,909148.5]
["CAN","Canada",0.9,0.83,373863.5]
["CPV","Cap vert",0.95,0.86,9869]
["CHL","Chili",0.92,0.57999999999999996,229215.5]
["CHN","Chine",0.99,0.99,11501936]
["CYP","Chypre",0.86,0.88,12964]
["COL","Colombie",0.86,0.86,728292.5]
["COM","Comores",0.82,0.19,23262.5]
["PRK","Corée du Nord",0.42,0.41,340427]
["KOR","Corée du Sud",0.98,0.96,291366.5]
["CRI","Costa Rica",0.89,0.69,61381.5]
["CIV","Côte d'Ivoire",0.68,0.01,884803]
["HRV","Croatie",0.89,0.9,35075.5]
["CUB","Cuba",0.99,0.99,102559.5]
["DNK","Danemark",0.95,0.94,62495]
["DJI","Djibouti",0.5,0.48,23731]
["DMA","Dominique",0.92,0.88,951]
["ARE","EAU",0.99,0.96,97099.5]
["EGY","Égypte",0.96,0.96,2435522]
["ECU","Equateur",0.65,0.57999999999999996,296920]
["ERI","Erythrée",0.93,0.85,100223.5]
["ESP","Espagne",0.95,0.91,351137]
["EST","Estonie",0.89,0.84,13801]
["SWZ","Eswatini",0.8,0.69,28062.5]
["USA","États-Unis",0.91,0.95,3689268]
["ETH","Éthiopie",0.54,0.46,3754002.5]
["FJI","Fiji",0.96,0.94,17646]
["FIN","Finlande",0.93,0.93,46790.5]
["FRA","France",0.92,0.86,657766.5]
["GAB","Gabon",0.64,0,61906]
["GMB","Gambie",0.79,0.67,84971]
["GHA","Ghana",0.94,0.83,878147.5]
["GRC","Grèce",0.97,0.83,80566]
["GRD","Grenade",0.83,0.79,1977.5]
["GTM","Guatemala",0.81,0.72,368640.5]
["GIN","Guinée",0.47,0,440646.5]
["GNQ","Guinée équatoriale",0.53,0.17,47635]
["GNB","Guinée-Bissau",0.63,0,61311]
["HTI","Haïti",0.65,0.41,259443.49999999997]
["HUN","Hongrie",0.99,0.99,92629.5]
["MUS","Île Maurice",0.77,0.64,13280]
["COK","Îles Cook",0.99,0.98,277]
["MHL","Îles Marshall",0.85,0.57999999999999996,830]
["SLB","Îles Salomon",0.67,0.4,20688.5]
["IDN","Indonésie",0.72,0.5,4435250]
["IRQ","Irak",0.75,0.84,1164101.5]
["IRN","Iran",0.99,0.98,1210915]
["IRL","Irlande",0.9,0,59234]
["ISL","Islande",0.92,0.1,4552.5]
["ISR","Israël",0.99,0.93,174648]
["ITA","Italie",0.92,0.86,409937]
["JAM","Jamaïque",0.88,0.85,32860.5]
["JPN","Japon",0.98,0.95,823218]
["JOR","Jordanie",0.76,0.9,241394]
["KAZ","Kazakhstan",0.97,0.96,417132.5]
["KEN","Kenya",0.89,0.56999999999999995,1414928]
["KGZ","Kirghizistan",0.93,0.97,156947.5]
["KWT","Koweït",0.94,0.94,46760]
["BOL","La Bolivie",0.75,0.56000000000000005,257302.5]
["GEO","La Géorgie",0.9,0.81,49238]
["GUY","La Guyane",0.94,0.83,15972]
["MDA","La Moldavie",0.83,0.92,37941.5]
["MNG","La Mongolie",0.95,0.94,71912]
["PNG","La Papouasie Nouvelle-Guinée",0.38,0.2,246277.5]
["AGO","L'Angola",0.36,0.32,1275483.5]
["LAO","Laos",0.73,0.5,158809]
["ARM","L'Arménie",0.94,0.94,34060]
["AZE","L'Azerbaijan",0.93,0.9,127570.5]
["BTN","Le Bhoutan",0.97,0.91,9542.5]
["COG","Le Congo",0.68,0.31,173538]
["HND","Le Honduras",0.81,0.75,213746]
["NIC","Le Nicaragua",0.83,0.83,139140.5]
["LKA","Le Sri Lanka",0.97,0.97,304804]
["TLS","Le Timor Leste",0.79,0.78,31933.5]
["KIR","Les Kiribati",0.8,0.57999999999999996,3390.5]
["LSO","Lesotho",0.9,0.82,56628]
["LVA","Lettonie",0.97,0.85,16545.5]
["LBN","Liban",0.67,0.59,83772.5]
["LBR","Libéria",0.57999999999999996,0.35,154796.5]
["LBY","Libye",0.73,0.72,119904.5]
["IND","L'Inde",0.89,0.82,22600595]
["LTU","Lituanie",0.88,0.88,26746]
["UZB","L'Ouzbékistan",0.99,0.99,808376.5]
["LUX","Luxembourg",0.99,0.9,6582.5]
["MKD","Macédoine",0.7,0.8,20111]
["MDG","Madagascar",0.39,0.24,862836]
["MYS","Malaisie",0.96,0.84,508935]
["MWI","Malawi",0.9,0.74,633160]
["MDV","Maldives",0.99,0.96,7392.5]
["MLI","Mali",0.7,0.33,862041]
["MLT","Malte",0.9,0.93,4668.5]
["MRT","Mauritanie",0.63,0,146269]
["MEX","Mexique",0.99,0.97,1902030.5]
["FSM","Micronésie",0.64,0.38,2297.5]
["MCO","Monaco",0.88,0.8,322]
["MNE","Monténégro",0.18,0.79,7018.5]
["MAR","Moroc",0.99,0.99,644114]
["MOZ","Mozambique",0.84,0.7,1116415]
["MMR","Myanmar",0.44,0.42,896497]
["NAM","Namibie",0.9,0.63,67751.5]
["NRU","Nauru",0.98,0.97,341]
["NPL","Népal",0.9,0.87,596958]
["NER","Niger",0.8,0.66,1087181.5]
["NGA","Nigéria",0.59,0.36,7435960]
["NIU","Niué",0.99,0.99,27]
["NOR","Norvège",0.97,0.95,53543.5]
["NZL","Nouvelle-Zélande",0.91,0.82,63744.5]
["OMN","Oman",0.99,0.99,77049.5]
["UGA","Ouganda",0.9,0,1626930]
["PAK","Pakistan",0.81,0.79,6093067.5]
["PLW","Palaos",0.93,0.84,271.5]
["PAN","Panama",0.8,0.97,76109]
["PRY","Paraguay",0.68,0.67,136592]
["NLD","Pays-Bas",0.93,0.9,176640]
["PER","Pérou",0.78,0.6,589314]
["PHL","Philippines",0.56999999999999995,0.55000000000000004,2430020]
["POL","Pologne",0.8,0.95,367056]
["PRT","Portugal",0.98,0.95,82668.5]
["QAT","Qatar",0.99,0.99,27562]
["CAF","RCA",0.41,0,217886.5]
["COD","RDC",0.55000000000000004,0,3813316]
["DOM","République dominicaine Rep.",0.88,0.6,200801.5]
["CZE","République tchèque",0.97,0.9,105331.5]
["ROU","Roumanie",0.86,0.75,196252]
["GBR","Royaume-Uni",0.91,0.87,679052]
["RUS","Russie",0.97,0.96,1418044.5]
["RWA","Rwanda",0.87,0.85,390887.5]
["KNA","Saint-Christophe-et-Niévès",0.96,0.94,581]
["LCA","Sainte-Lucie",0.77,0.66,2056]
["SMR","Saint-Marin",0.89,0.81,204]
["VCT","Saint-Vincent",0.99,0.99,1343]
["SLV","Salvador",0.86,0.71,100357]
["WSM","Samoa",0.62,0.5,5882.5]
["STP","Sao Tomé-et-Principe",0.77,0.69,6190]
["SEN","Sénégal",0.87,0.75,534566.5]
["SRB","Serbie",0.78,0.84,67829]
["SYC","Seychelles",0.94,0.86,1639.5]
["SLE","Sierra Leone",0.87,0.67,249995.5]
["SGP","Singapour",0.95,0.84,41960]
["SVK","Slovaquie",0.95,0.96,54840]
["SVN","Slovénie",0.95,0.91,19288]
["SOM","Somalie",0.46,0.04,696080]
["SDN","Soudan",0.81,0.63,1477254.5]
["SSD","Sud-Soudan",0.49,0,295787]
["SWE","Suède",0.97,0.91,114049.5]
["CHE","Suisse",0.95,0.94,85819.5]
["SUR","Suriname",0.57999999999999996,0.43,10959.5]
["SYR","Syrie",0.59,0.53,413623.5]
["TJK","Tadjikistan",0.97,0.96,255563]
["TZA","Tanzanie",0.76,0.62,2216127]
["TCD","Tchad",0.55000000000000004,0,699185]
["THA","Thaïlande",0.96,0.87,646440.5]
["TGO","Togo",0.7,0.5,263971]
["TON","Tonga",0.99,0.99,2425]
["TTO","Trinidad",0.93,0.88,17760]
["TUN","Tunisie",0.95,0.98,197361]
["TKM","Turkménistan",0.97,0.98,134015.5]
["TUR","Turquie",0.96,0.93,1245242.5]
["TUV","Tuvalu",0.93,0.84,258.5]
["UKR","Ukraine",0.88,0.86,335939]
["URY","Uruguay",0.96,0.84,35505.5]
["VUT","Vanuatu",0.5,0,9195]
["VEN","Venezuela",0.68,0.37,444172]
["VNM","Vietnam",0.89,0.85,1453562.5]
["YEM","Yémen",0.71,0.52,969879]
["ZMB","Zambie",0.9,0.81,644396]
["ZWE","Zimbabwe",0.85,0.74,472443.5]

{"sheet":"Données sur le taux de perte","index":6,"n_rows":5,"n_cols":4,"rows_kept":5,"cut":false,"hidden":true,"merged":[]}
["Données sur le taux de perte"]
["Gaspillage","10 doses","5 doses","Commentaires"]
["Fiche d'information OMS/UNICEF",0.4,0.3,"Hypothèses sur la perte vaccinale tirées de la fiche d'information OMS/UNICEF sur les présentations de vaccin R/RR en flacons de cinq doses"]
["Étude sur la Zambie",0.30530000000000002,0.1618,"Résultats de l'étude sur la perte vaccinale en Zambie"]
["Saisie manuelle d'hypothèses sur la perte vaccinale enter wastage assumptions","Saisie manuelle enter","Saisie manuelle enter","Saisissez vos propres hypothèses sur la perte vaccinale pour la taille de flacon indiquée"]

{"sheet":"Coûts programmatiques","index":7,"n_rows":4,"n_cols":3,"rows_kept":4,"cut":false,"hidden":true,"merged":[]}
["Coûts programmatique"]
["Gaspillage","Coût marginal non lié aux vaccins Non-Vaccine Cost","Commentaires"]
["Étude sur la Zambie",0.11,"L'étude sur la Zambie a révélé que le coût marginal économique et financier par flacon de 5 doses administré était de 0,11 $ (hors coût du vaccin). Les coûts supplémentaires comprennent les coûts de la chaîne du froid, du transport, de la sensibilisation, des ressources humaines et de l'élimination des déchets. Les données proviennent du rapport du DPCP sur la Zambie."]
["Saisie manuelle des coûts du programme ","Saisie manuelle","Saisissez vos propres hypothèses de coûts programmatiques associés à l'adoption des flacons de 5 doses. Il s'agit des coûts marginaux non liés aux vaccins par dose administrée. Ces coûts comprennent les coûts de la chaîne du froid, du transport, de la sensibilisation, des ressources humaines et de l'élimination des déchets."]

{"sheet":"Données sur le produit","index":8,"n_rows":11,"n_cols":3,"rows_kept":11,"cut":false,"hidden":true,"merged":[]}
["Données sur le produit"]
["Vaccin","Prix par dose (UNICEF, 2023)","Volume de chaîne du froid par dose (en cm3)"]
["Rougeole, SII\n Flacon de 10 doses",0.42299999999999999,{"$f":"2.11+3.14","v":5.25}]
["Rougeole, Bio Farma\n Flacon de 10 doses",0.27,{"$f":"3.3+2.53","v":5.83}]
["RR, SII\n Flacon de 10 doses",0.873,{"$f":"2.1+3.14","v":5.24}]
["RR, Bio E\nFlacon de 10 doses",0.79200000000000004,{"$f":"1.78+2.12","v":3.9000000000000004}]
["ROR, SII\n Flacon de 10 doses",1.7090000000000001,{"$f":"SUM(2.109+3.1424)","v":5.2514000000000003}]
["Rougeole, SII\nFlacon à 5 doses",0.52200000000000002,{"$f":"3.16+5.48","v":8.64}]
["RR, SII\n Flacon à 5 doses",1.0900000000000001,{"$f":"3.16+5.49","v":8.65}]
["RR, BioE\nFlacon à 5 doses",0.91800000000000004,{"$f":"2.67+3.25","v":5.92}]
["ROR, SII\n Flacon à 5 doses",1.776,{"$f":"4.218+5.481","v":9.6989999999999998}]

{"sheet":"Co-financement Gavi","index":9,"n_rows":6,"n_cols":1,"rows_kept":6,"cut":false,"hidden":true,"merged":[]}
["Statut du cofinancement avec Gavi"]
["Auto-financement initial"]
["Transition préparatoire"]
["Transition accélérée"]
["Pays ayant transité hors du soutien de Gavi"]
["Pays ne bénéficiant pas du soutien de Gavi"]